bitfinex/quotes_ETHUSD_20251015
["timestamp","ask_amount","ask_price","bid_price","bid_amount"]
[1760487744978,2.43108268,4113.4,4112.1,0.27038507]
[1760487744979,2.89061,4113.2,4112.7,2.43149149]
[1760487745182,10.410132,4113.5,4112.8,0.0272]
[1760487745379,0.03038848,4113.4,4112.8,0.0272]
[1760487745605,21.12107554,4113.2,4112.8,0.0272]
[1760487745801,0.0303907,4113.1,4112.8,0.0272]
[1760487746101,0.0303907,4113.1,4112.4,0.0272]
[1760487746307,2.43139594,4112.9,4112.4,0.0272]
[1760487746477,0.03039291,4112.8,4112.5,0.0272]
[1760487746804,2.46184919,4112.8,4112.5,0.0272]
[1760487747613,0.03039291,4112.8,4112.2,0.0272]
[1760487747783,0.1208,4112.2,4111.6,2.4321432]
[1760487747982,0.1208,4112.2,4111.7,0.25537432]
[1760487748196,0.1208,4112.2,4112.1,2.43184747]
[1760487748401,0.1208,4112.2,4112.1,2.45904747]
[1760487749819,0.1208,4112.2,4112.1,0.0272]
[1760487749978,0.1208,4112.2,4112.1,2.45904747]
[1760487751306,0.1208,4112.2,4112.0,2.43186863]
[1760487751497,0.1208,4112.2,4111.6,2.4321432]
[1760487751498,0.1208,4112.2,4111.8,0.0272]
[1760487751683,0.1208,4112.2,4112.0,2.43186873]
[1760487751893,0.1208,4112.2,4111.8,2.43198486]
[1760487752099,0.1208,4112.2,4111.9,2.43196393]
[1760487752284,0.1208,4112.2,4111.8,2.43200993]
[1760487752484,0.1208,4112.2,4111.9,2.43196202]
[1760487752704,0.1208,4112.2,4111.9,2.45916202]
[1760487752910,0.1208,4112.2,4111.9,0.0272]
[1760487753211,3.10527969,4112.9,4111.6,0.25538076]
[1760487753212,0.03039513,4112.5,4111.6,0.25538076]
[1760487753423,0.1208,4111.9,4111.6,2.68751477]
[1760487753624,0.1208,4111.9,4111.8,2.4320249]
[1760487754733,0.1208,4111.9,4111.8,2.70348547]
[1760487754916,0.1208,4111.9,4111.8,0.27146057]
[1760487755122,0.1208,4111.9,4111.6,2.43214304]
[1760487755712,0.1208,4111.9,4111.6,2.45934304]
[1760487755913,0.1208,4111.9,4111.6,2.45934009]
[1760487756205,0.1208,4111.9,4111.4,2.43225896]
[1760487756411,0.1208,4111.9,4111.7,2.432082]
[1760487757016,0.1208,4111.9,4111.6,2.4321432]
[1760487757223,0.1208,4111.9,4111.8,2.4320249]
[1760487758509,0.1208,4111.9,4111.7,2.43207142]
[1760487758714,0.1208,4111.9,4111.7,2.43203496]
[1760487758914,0.1208,4111.9,4111.8,2.4320249]
[1760487759816,0.1208,4111.9,4111.6,2.43213621]
[1760487760028,0.1208,4111.9,4111.4,2.69036037]
[1760487760227,0.4452,4112.2,4111.4,0.2581059]
[1760487760430,0.1216,4111.6,4111.5,2.43216391]
[1760487761822,0.1216,4111.6,4111.1,0.0272]
[1760487762025,0.1216,4111.6,4111.5,2.43220235]
[1760487762523,1.92,4112.4,4111.7,2.43204787]
[1760487762719,0.1216,4111.9,4111.6,2.43212713]
[1760487762924,0.1216,4111.9,4111.6,2.45932713]
[1760487763126,0.1216,4111.9,4111.6,2.43212713]
[1760487763509,0.1216,4111.9,4111.5,2.43214566]
[1760487763720,0.1216,4111.9,4111.6,2.43210325]
[1760487765140,0.1216,4111.9,4111.7,2.43206803]
[1760487765322,0.6336,4113.0,4112.2,2.43177757]
[1760487765524,2.43147675,4112.8,4112.0,2.43190303]
[1760487765728,2.43147675,4112.8,4111.8,2.45921761]
[1760487765729,2.30135229,4112.7,4112.1,2.43181598]
[1760487766036,0.03039439,4112.6,4112.1,2.43181598]
[1760487766228,0.47559439,4112.6,4111.8,2.43202465]
[1760487766535,2.39559439,4112.6,4111.8,2.43202465]
[1760487766735,2.39559439,4112.6,4112.1,2.43183562]
[1760487767235,2.39559439,4112.6,4112.0,2.4318924]
[1760487767536,0.47559439,4112.6,4111.5,0.0272]
[1760487767739,0.2285,4111.6,4110.3,2.43490854]
[1760487767938,0.2285,4112.0,4110.3,0.002]
[1760487768233,3.318466,4112.7,4112.2,2.43174458]
[1760487768445,0.00592202,4113.1,4111.3,0.6336]
[1760487768446,0.0303907,4113.1,4111.3,0.6336]
[1760487768745,0.4452,4113.8,4113.1,2.43124696]
[1760487768918,2.88772,4113.6,4112.6,0.0272]
[1760487769241,2.88772,4113.6,4111.7,2.4320618]
[1760487769242,0.6737,4115.1,4112.8,2.43143357]
[1760487769421,0.6737,4115.9,4113.0,2.562]
[1760487769621,0.6737,4115.9,4113.1,0.01835223]
[1760487769948,0.6737,4115.9,4114.8,2.43025177]
[1760487770117,0.4452,4116.3,4114.8,2.70047695]
[1760487770320,0.4452,4117.1,4114.8,2.71881232]
[1760487770737,0.00495358,4117.2,4114.8,2.70047695]
[1760487770942,0.001,4117.6,4114.8,2.70047695]
[1760487770943,0.3810066,4116.8,4114.8,3.35241232]
[1760487771619,0.4462,4117.6,4114.8,5.91441232]
[1760487771946,0.4462,4117.6,4114.8,5.89607695]
[1760487772118,0.03035822,4117.5,4114.8,5.89607695]
[1760487773044,0.4462,4117.6,4114.8,7.81607695]
[1760487773244,0.001,4117.6,4114.8,5.25407695]
[1760487775439,0.001,4117.6,4117.5,2.42865816]
[1760487775828,0.001,4117.6,4117.5,2.54945816]
[1760487778923,0.4622,4117.6,4114.5,2.43038923]
[1760487779124,0.4622,4117.6,4117.3,2.42877039]
[1760487779334,0.4612,4117.5,4115.8,0.0272]
[1760487779682,0.4612,4117.5,4115.9,2.42960227]
[1760487779855,0.4612,4117.4,4117.1,2.42889075]
[1760487780056,0.4612,4117.3,4117.1,2.42889075]
[1760487780360,0.4612,4117.2,4116.8,2.42902133]
[1760487780668,0.2373,4116.9,4116.8,2.42902133]
[1760487780866,0.6985,4116.9,4116.8,2.42902133]
[1760487781456,0.6985,4116.9,4116.0,0.24568023]
[1760487781654,0.6985,4116.9,4116.4,2.42929016]
[1760487781829,0.4612,4116.8,4116.4,2.42929016]
[1760487782022,0.4612,4116.7,4116.5,2.42924565]
[1760487782269,0.4612,4117.4,4116.6,2.44746141]
[1760487782435,0.001,4117.6,4116.5,0.48586621]
[1760487782622,0.001,4117.6,4117.5,2.42865816]
[1760487782828,0.001,4117.6,4117.5,2.4469537]
[1760487783122,0.001,4117.6,4117.5,2.42865816]
[1760487784673,0.4622,4117.6,4116.5,0.48586621]
[1760487784866,0.4622,4117.6,4117.1,2.42885182]
[1760487785070,0.4612,4117.5,4117.1,2.42885182]
[1760487785272,0.001,4117.6,4117.1,2.42885182]
[1760487785447,0.4612,4117.4,4117.2,2.42878225]
[1760487785646,0.4612,4117.3,4117.2,2.42878225]
[1760487785987,0.001,4117.6,4117.5,2.42865816]
[1760487786880,0.4622,4117.6,4117.2,0.48577228]
[1760487787079,0.4622,4117.6,4116.1,0.0272]
[1760487787080,0.001,4117.6,4117.5,2.42865816]
[1760487787247,0.4622,4117.6,4117.5,2.42865816]
[1760487787758,0.001,4117.6,4117.5,2.42865816]
[1760487788152,0.4622,4117.6,4117.5,2.42865816]
[1760487788675,0.001,4117.6,4117.5,2.42865816]
[1760487789064,0.001,4117.6,4117.5,2.91439767]
[1760487789273,0.001,4117.6,4117.5,2.93269321]
[1760487789572,0.001,4117.6,4117.5,3.03519767]
[1760487790477,0.001,4117.6,4117.5,2.54945816]
[1760487790853,0.4602,4117.6,4117.5,2.42865816]
[1760487791065,0.4602,4117.6,4117.2,2.42880014]
[1760487791397,0.4592,4117.5,4116.9,0.1208]
[1760487791608,0.4592,4117.5,4117.3,2.42872751]
[1760487791789,0.4592,4117.4,4117.3,2.42872751]
[1760487792985,0.4592,4117.4,4117.0,2.42889422]
[1760487793199,0.4592,4117.3,4117.1,2.42887162]
[1760487793393,0.1218,4117.6,4117.1,2.42887162]
[1760487793566,0.1218,4117.6,4115.3,0.6336]
[1760487793567,1.92,4117.3,4115.6,2.42977246]
[1760487793771,4.34890509,4117.1,4116.2,2.42937791]
[1760487794078,0.2318,4116.3,4116.2,2.42937791]
[1760487794582,0.691,4116.3,4115.8,2.42962012]
[1760487794784,0.4592,4116.2,4115.7,2.42967511]
[1760487794980,0.48956855,4116.1,4114.0,0.0272]
[1760487795180,0.48956855,4116.1,4115.3,2.42990941]
[1760487795384,0.4592,4116.0,4115.3,2.42990941]
[1760487795896,0.03036855,4116.1,4115.3,2.42990941]
[1760487796073,0.4592,4115.9,4114.8,0.002]
[1760487796273,0.4592,4115.9,4115.2,2.43000531]
[1760487796504,0.4592,4115.8,4115.1,2.43006483]
[1760487796703,2.42988207,4115.5,4114.8,0.002]
[1760487796878,0.2318,4114.9,4114.8,0.002]
[1760487797279,5.04119271,4114.9,4114.8,0.002]
[1760487798397,5.67479271,4114.9,4114.8,0.002]
[1760487798608,4.09320422,4114.9,4114.8,0.002]
[1760487798910,6.52339693,4114.9,4114.8,0.002]
[1760487799226,17.81966593,4114.9,4114.8,0.002]
[1760487800118,20.11201193,4114.9,4114.8,0.002]
[1760487801132,2.1518,4114.9,4114.8,0.002]
[1760487801604,1.92,4114.9,4114.8,0.002]
[1760487802002,0.2318,4115.3,4114.8,0.002]
[1760487802318,4.252226,4115.6,4114.8,0.002]
[1760487802518,0.2318,4115.7,4114.9,2.43019271]
[1760487802716,0.48957224,4115.6,4114.8,0.002]
[1760487802930,4.83936446,4115.6,4114.8,0.002]
[1760487803115,2.42996568,4115.3,4114.8,0.002]
[1760487803296,0.03037519,4115.2,4114.8,0.002]
[1760487803638,0.1208,4114.9,4114.8,2.43224504]
[1760487804002,0.691,4115.7,4115.1,2.43007289]
[1760487804197,0.1208,4115.2,4115.1,2.43007289]
[1760487804424,0.1208,4115.5,4115.1,2.43003515]
[1760487804617,0.4592,4115.5,4114.8,0.2452245]
[1760487804801,0.1208,4115.3,4115.2,2.43001555]
[1760487805641,0.1208,4115.3,4115.1,2.43006903]
[1760487806412,0.1208,4115.3,4115.2,2.43001555]
[1760487806817,0.2318,4115.9,4115.6,2.42975011]
[1760487807230,0.2318,4115.9,4115.6,2.4297722]
[1760487807420,0.1208,4115.6,4115.4,2.42989745]
[1760487807833,0.1208,4115.6,4115.5,2.42983841]
[1760487809781,0.1208,4115.6,4115.5,2.9158179]
[1760487809903,0.2318,4117.1,4115.5,2.9158179]
[1760487809904,0.2318,4116.7,4115.5,0.65230454]
[1760487810217,0.2318,4117.1,4115.5,0.50430454]
[1760487810410,0.2318,4117.1,4116.8,2.42906468]
[1760487810810,0.2318,4117.1,4115.9,2.42958109]
[1760487811042,0.2318,4117.1,4116.6,2.42913765]
[1760487811245,0.2318,4117.1,4117.0,2.42895312]
[1760487811428,0.2318,4117.4,4116.2,0.0272]
[1760487811746,0.2318,4117.4,4115.4,2.42987635]
[1760487811747,1.92,4117.2,4115.4,2.42989745]
[1760487811948,0.03036117,4117.1,4116.5,2.42922366]
[1760487812116,0.2318,4116.6,4116.3,2.42932369]
[1760487812314,0.691,4116.6,4116.3,2.42932369]
[1760487812514,0.4592,4116.5,4116.0,2.42949385]
[1760487812853,0.4592,4116.4,4115.7,2.42968466]
[1760487813065,0.4592,4116.4,4115.7,2.42967217]
[1760487813344,0.4592,4116.4,4115.6,2.42977113]
[1760487813850,4.83897579,4116.3,4115.5,2.4297923]
[1760487814022,4.809668,4116.2,4115.4,2.42984673]
[1760487814226,0.001,4116.2,4115.8,2.42964449]
[1760487814555,0.001,4116.2,4116.1,2.42948422]
[1760487817153,0.001,4116.2,4115.2,2.42999858]
[1760487817379,0.001,4116.2,4114.8,0.002]
[1760487817661,2.42972416,4115.7,4115.0,2.4301305]
[1760487817826,0.03037224,4115.6,4114.8,0.002]
[1760487818029,0.2318,4114.9,4114.8,0.002]
[1760487818673,0.6336,4116.0,4114.8,0.002]
[1760487818960,0.2318,4115.6,4114.9,2.43019271]
[1760487819158,0.2318,4115.6,4114.8,0.002]
[1760487819159,2.69195698,4115.6,4114.8,0.002]
[1760487819360,1.92,4115.4,4114.8,0.002]
[1760487819570,0.03037445,4115.3,4114.8,0.002]
[1760487819735,0.50027445,4115.3,4114.8,0.002]
[1760487819932,0.4699,4115.2,4114.8,0.002]
[1760487820131,0.03037593,4115.1,4114.8,0.002]
[1760487820466,18.24078071,4114.9,4114.8,0.002]
[1760487820691,10.75508771,4114.9,4114.8,0.002]
[1760487820967,10.46518771,4114.9,4114.8,0.002]
[1760487821125,1.92,4114.9,4114.8,0.002]
[1760487821334,2.0408,4114.9,4114.8,2.43225177]
[1760487821562,1.92,4114.9,4114.8,2.91850373]
[1760487824328,0.0303715,4115.7,4115.0,2.43011118]
[1760487824533,0.001,4116.2,4115.1,0.01832889]
[1760487824733,0.001,4116.2,4114.8,0.51545196]
[1760487824734,0.001,4116.2,4115.8,2.42961327]
[1760487825341,0.4709,4116.2,4115.8,2.42961327]
[1760487825545,0.2243,4115.9,4114.8,0.48825196]
[1760487825868,0.03037076,4115.8,4115.0,2.43010935]
[1760487826073,0.50027076,4115.8,4114.9,2.43019271]
[1760487826283,2.92994335,4115.8,4115.1,2.43007022]
[1760487826569,2.92995607,4115.8,4115.0,2.43013365]
[1760487826767,4.9272,4115.7,4115.0,2.43013365]
[1760487826976,0.03037224,4115.6,4114.8,0.002]
[1760487827186,0.2243,4115.9,4114.8,0.002]
[1760487827381,0.4709,4116.2,4115.8,2.42964895]
[1760487827542,0.001,4116.2,4115.7,2.4297043]
[1760487827743,0.001,4116.2,4115.6,2.42976917]
[1760487827971,0.4709,4116.2,4115.6,2.42976917]
[1760487828167,0.50126781,4116.2,4115.6,2.42976917]
[1760487828483,0.2243,4115.7,4114.8,0.002]
[1760487828774,2.8993867,4116.1,4115.4,2.42989457]
[1760487828960,2.8993867,4116.1,4114.8,0.002]
[1760487828961,1.95036929,4116.0,4114.8,0.002]
[1760487829160,1.95036929,4116.0,4115.3,2.42994637]
[1760487829161,4.37992343,4116.0,4115.3,2.42994637]
[1760487829475,1.92,4115.8,4115.3,2.42994637]
[1760487829968,0.4699,4115.7,4115.3,2.42994637]
[1760487830542,0.25467002,4115.9,4115.3,2.42994637]
[1760487830844,0.4699,4115.8,4115.3,2.42994637]
[1760487831043,0.4699,4115.7,4115.4,2.42989128]
[1760487831484,0.1208,4115.5,4115.4,2.42989128]
[1760487833368,0.1208,4115.5,4115.3,2.42993868]
[1760487833887,0.4699,4115.4,4115.0,2.43011495]
[1760487834261,0.1208,4115.3,4115.1,2.43006356]
[1760487834978,0.1208,4115.3,4115.0,2.43013365]
[1760487835479,0.1208,4115.3,4115.2,2.43001555]
[1760487835774,0.2243,4115.9,4115.4,2.42984792]
[1760487835963,0.1208,4115.7,4115.4,2.42984792]
[1760487836275,0.1208,4115.7,4115.3,2.42993315]
[1760487836775,0.1208,4115.7,4115.0,0.1208]
[1760487836776,0.1208,4115.7,4115.4,2.42989425]
[1760487837572,0.1208,4115.7,4115.0,0.1208]
[1760487837768,0.1208,4115.7,4115.3,2.42995428]
[1760487837960,0.4466,4115.6,4115.0,0.1208]
[1760487838280,0.4466,4115.6,4115.2,2.42999791]
[1760487838455,0.4466,4115.6,4115.3,2.429949]
[1760487838656,0.1208,4115.7,4115.4,2.42984215]
[1760487839491,0.1208,4115.7,4115.3,2.42995528]
[1760487839651,0.1208,4115.7,4115.0,0.1208]
[1760487839652,0.1208,4115.7,4115.4,2.42985731]
[1760487839885,0.1208,4115.7,4115.0,0.1208]
[1760487840209,0.1208,4115.7,4115.3,2.42991795]
[1760487840700,0.1208,4115.7,4115.4,2.42988675]
[1760487841010,0.1208,4115.7,4115.0,0.1208]
[1760487841389,0.1208,4115.7,4115.4,2.42985402]
[1760487841585,0.1208,4115.7,4115.6,2.42977937]
[1760487842008,0.4466,4115.7,4115.0,0.25802885]
[1760487842210,1.92,4115.6,4114.8,0.002]
[1760487842385,2.3969715,4115.7,4115.1,2.43001862]
[1760487842585,2.90669354,4115.7,4115.1,2.43001862]
[1760487842911,2.90669354,4115.7,4115.1,2.43004212]
[1760487842912,2.3969715,4115.7,4115.1,2.43004212]
[1760487843084,1.92,4115.5,4114.9,2.43017799]
[1760487843288,4.34978808,4115.6,4114.9,2.43017799]
[1760487843489,1.92,4115.6,4115.0,2.43012541]
[1760487843709,1.92,4115.6,4115.1,2.43006915]
[1760487843901,0.4466,4115.5,4115.0,2.43011759]
[1760487845612,0.4466,4115.5,4115.1,2.43006738]
[1760487846315,1.92,4115.6,4114.8,2.43224774]
[1760487846316,0.0303715,4115.7,4115.3,2.42990925]
[1760487846524,0.0303715,4115.7,4114.8,0.002]
[1760487846525,0.2317,4115.8,4114.9,2.43019271]
[1760487846833,0.4769715,4115.7,4115.0,2.43013267]
[1760487846981,2.486629,4115.6,4115.0,2.43013267]
[1760487847182,1.92,4115.6,4115.1,2.43007179]
[1760487847383,0.4466,4115.5,4115.1,2.43007179]
[1760487847811,0.4466,4115.5,4114.9,2.43014865]
[1760487848012,13.43069,4115.2,4114.8,0.002]
[1760487848200,10.60076,4115.2,4114.8,0.002]
[1760487848408,0.4466,4115.1,4114.8,0.002]
[1760487848917,0.03037519,4115.2,4114.8,0.002]
[1760487849119,0.4466,4115.0,4114.8,0.002]
[1760487849988,0.4922774,4114.9,4114.8,0.002]
[1760487850190,1.92,4114.9,4114.8,0.002]
[1760487850806,5.795157,4114.9,4114.8,0.002]
[1760487851023,4.573157,4114.9,4114.8,0.002]
[1760487851189,7.2315344,4114.9,4114.8,0.002]
[1760487851399,7.201157,4114.9,4114.8,0.002]
[1760487851726,10.83748478,4114.9,4114.8,0.002]
[1760487851892,9.63134971,4114.9,4114.8,0.002]
[1760487852089,11.78929171,4114.9,4114.8,0.002]
[1760487852294,12.72131557,4114.9,4114.8,0.002]
[1760487853099,5.74411657,4114.9,4114.8,0.002]
[1760487853325,20.53245005,4114.9,4114.8,0.002]
[1760487853799,14.67175105,4114.9,4114.8,0.002]
[1760487854140,6.56153705,4114.9,4114.8,0.002]
[1760487854431,17.78904205,4114.9,4114.8,0.002]
[1760487854726,9.33170119,4114.9,4114.8,0.002]
[1760487855158,13.71121819,4114.9,4114.8,0.002]
[1760487856024,13.50351419,4114.9,4114.8,0.002]
[1760487856225,14.40471719,4114.9,4114.8,0.002]
[1760487857263,15.05639019,4114.9,4114.8,0.002]
[1760487857732,1.92,4114.9,4114.8,0.002]
[1760487859023,1.92,4114.9,4113.8,0.1208]
[1760487859024,0.635145,4113.5,4109.1,1.24152502]
[1760487859224,0.635145,4113.5,4108.1,2.562]
[1760487859225,2.32576742,4109.7,4108.1,2.562]
[1760487859524,2.32576742,4109.5,4109.2,0.0312]
[1760487859724,2.32576742,4109.5,4108.2,2.43415607]
[1760487859725,2.32576742,4109.7,4109.3,0.0312]
[1760487859923,2.32576742,4109.7,4108.8,2.43376804]
[1760487859924,2.32576742,4109.7,4109.4,0.0312]
[1760487860147,2.32576742,4109.7,4109.6,2.43332684]
[1760487860354,2.32576742,4109.7,4109.6,2.92312305]
[1760487860871,0.03040918,4110.6,4109.6,0.48979621]
[1760487861174,0.03040918,4110.6,4108.5,0.01841254]
[1760487861466,0.03040918,4110.6,4107.6,0.6]
[1760487861467,16.641,4110.4,4108.8,2.433743]
[1760487861648,0.0304114,4110.3,4108.9,2.46488898]
[1760487861962,0.4619,4110.6,4109.9,2.43313966]
[1760487862160,0.4619,4110.6,4109.2,2.43350984]
[1760487862328,0.6400188,4111.0,4110.0,2.43308182]
[1760487862658,0.5839737,4111.1,4109.7,0.0312]
[1760487862850,0.2372,4111.2,4110.6,2.43269643]
[1760487863159,6.388303,4111.1,4110.6,2.43269643]
[1760487863322,1.95040622,4111.0,4110.5,2.43274472]
[1760487863656,1.92,4110.8,4110.5,2.43274472]
[1760487863876,0.0304077,4110.8,4108.7,2.43381261]
[1760487864161,1.92,4110.4,4110.0,2.43308398]
[1760487864326,0.4619,4110.7,4110.3,2.43291101]
[1760487864327,0.03040992,4110.5,4110.3,2.43291101]
[1760487864525,0.03040918,4110.6,4110.3,2.43291101]
[1760487864758,0.0304077,4110.8,4110.3,2.43291101]
[1760487865050,1.92,4110.6,4110.3,2.43291101]
[1760487865252,0.03040992,4110.5,4110.3,2.43291101]
[1760487865549,0.03040992,4110.5,4110.1,2.43302682]
[1760487865550,0.4619,4110.5,4110.1,2.43302682]
[1760487865750,0.03041066,4110.4,4110.3,2.43291243]
[1760487866262,0.26760696,4110.9,4108.9,2.43374139]
[1760487866466,0.26760696,4110.9,4110.6,2.43268121]
[1760487866764,0.2372,4110.9,4110.6,2.43268121]
[1760487867265,0.2372,4110.9,4110.6,2.05154721]
[1760487867842,0.2372,4110.9,4110.5,2.43278688]
[1760487868051,0.4923077,4110.8,4109.5,2.43334322]
[1760487868345,1.92,4110.6,4110.1,2.43302158]
[1760487868557,0.03040992,4110.5,4109.5,2.67671078]
[1760487868742,0.03040992,4110.5,4110.2,2.4329232]
[1760487869053,0.03040992,4110.5,4109.5,2.67671078]
[1760487869054,0.03040992,4110.5,4109.5,0.36493432]
[1760487869245,0.1216,4110.2,4110.1,2.43303082]
[1760487869456,0.1216,4110.2,4109.5,0.36493432]
[1760487869658,0.1216,4110.2,4110.1,2.43303082]
[1760487871279,0.1216,4110.2,4110.1,2.46423082]
[1760487871438,0.1216,4110.2,4110.1,2.43303082]
[1760487871937,0.001,4111.0,4110.9,2.43255734]
[1760487873679,0.1226,4111.0,4110.9,2.43255734]
[1760487874779,4.98052,4111.0,4110.9,2.43255734]
[1760487874965,2.0426,4111.0,4110.9,2.43255734]
[1760487881270,0.001,4111.5,4111.4,2.43226151]
[1760487881477,0.001,4111.5,4111.4,2.91872149]
[1760487881676,0.001,4111.5,4111.4,2.96830712]
[1760487882052,0.001,4111.5,4111.4,2.94992149]
[1760487883286,0.001,4111.5,4111.4,2.91872149]
[1760487883482,0.001,4111.5,4111.4,2.43226151]
[1760487884285,0.001,4111.5,4111.4,2.46346151]
[1760487886088,0.001,4111.5,4111.4,2.43226151]
[1760487891390,0.001,4111.5,4111.4,2.55386151]
[1760487892462,0.4476,4111.5,4111.4,2.43226151]
[1760487892863,0.001,4111.5,4111.4,2.43226151]
[1760487896777,0.001,4111.5,4111.4,2.91872295]
[1760487896971,0.001,4111.5,4111.4,3.04032295]
[1760487900410,0.4476,4111.5,4111.4,2.43226151]
[1760487901307,0.001,4111.5,4111.4,2.43226151]
[1760487904380,0.4476,4111.5,4111.4,2.43226151]
[1760487904708,0.4476,4111.5,4111.3,2.43231687]
[1760487904909,0.4476,4111.5,4111.0,2.43246582]
[1760487904910,0.4466,4111.4,4111.0,2.43246582]
[1760487905113,0.001,4111.5,4111.0,2.43246582]
[1760487905114,0.4466,4111.3,4111.0,2.43246582]
[1760487905307,0.4466,4111.2,4110.6,0.002]
[1760487905508,0.2298,4110.7,4110.6,2.43468551]
[1760487905710,0.6764,4110.7,4110.6,2.43468551]
[1760487906012,0.001,4111.5,4110.6,0.002]
[1760487906405,0.001,4111.5,4111.4,2.43226151]
[1760487906820,0.4476,4111.5,4111.4,2.43226151]
[1760487907181,0.001,4111.5,4111.4,2.43226151]
[1760487907885,0.001,4111.5,4111.4,2.91872435]
[1760487910189,0.001,4111.5,4111.4,3.04032435]
[1760487912697,0.001,4111.5,4111.4,2.91872435]
[1760487912986,0.001,4111.5,4111.4,2.43226151]
[1760487914030,0.001,4111.5,4111.4,2.55386151]
[1760487917412,0.001,4111.5,4111.4,2.60344714]
[1760487918011,0.001,4111.5,4111.4,2.58506151]
[1760487918387,0.001,4111.5,4111.4,5.14706151]
[1760487918716,0.001,4111.5,4111.4,3.31364292]
[1760487922932,0.4491,4111.5,4111.4,2.55386151]
[1760487923121,0.4491,4111.5,4111.4,2.43226151]
[1760487923833,0.4491,4111.5,4111.0,0.002]
[1760487924041,0.1216,4111.4,4111.3,2.4323001]
[1760487924234,0.5697,4111.4,4111.3,2.4323001]
[1760487924412,0.5697,4111.4,4111.1,2.432439]
[1760487924622,0.4481,4111.3,4111.1,2.432439]
[1760487924832,0.4481,4111.2,4111.1,2.432439]
[1760487925531,0.4481,4111.2,4111.0,0.002]
[1760487925733,0.4481,4111.1,4111.0,0.002]
[1760487927949,0.68795033,4111.1,4111.0,0.002]
[1760487928157,0.71835581,4111.1,4111.0,0.002]
[1760487928778,5.9814426,4111.1,4111.0,0.002]
[1760487928931,8.60039812,4111.1,4111.0,0.002]
[1760487929126,6.09639133,4111.1,4111.0,0.002]
[1760487929327,8.52883033,4111.1,4111.0,0.002]
[1760487929734,14.44808933,4111.1,4111.0,0.002]
[1760487930854,3.24155033,4111.1,4111.0,0.002]
[1760487931065,8.64339281,4111.1,4111.0,0.002]
[1760487931273,8.61938246,4111.1,4111.0,0.002]
[1760487931454,8.89643025,4111.1,4111.0,0.002]
[1760487931769,11.32886925,4111.1,4111.0,0.002]
[1760487932069,13.77079133,4111.1,4111.0,0.002]
[1760487932830,16.19878733,4111.1,4111.0,0.002]
[1760487933031,5.53443633,4111.1,4111.0,0.002]
[1760487933227,3.24155033,4111.1,4111.0,0.002]
[1760487933432,6.07895581,4111.1,4111.0,0.002]
[1760487933663,6.04855033,4111.1,4111.0,0.002]
[1760487933883,13.38302233,4111.1,4111.0,0.002]
[1760487934086,10.68487433,4111.1,4111.0,0.002]
[1760487934965,10.99307833,4111.1,4111.0,0.002]
[1760487935421,13.42551733,4111.1,4111.0,0.002]
[1760487935889,35.67398933,4111.1,4111.0,0.002]
[1760487936681,35.68038446,4111.1,4111.0,0.002]
[1760487936972,35.95743225,4111.1,4111.0,0.002]
[1760487937180,34.13228712,4111.1,4111.0,0.002]
[1760487937506,34.13875325,4111.1,4111.0,0.002]
[1760487938003,35.95750325,4111.1,4111.0,0.002]
[1760487938520,36.33903999,4111.1,4111.0,0.002]
[1760487938676,36.59277739,4111.1,4111.0,0.002]
[1760487939115,36.58631126,4111.1,4111.0,0.002]
[1760487939272,36.59291944,4111.1,4111.0,0.002]
[1760487940212,36.58631126,4111.1,4111.0,0.002]
[1760487940617,36.2113827,4111.1,4111.0,0.002]
[1760487941125,35.9576453,4111.1,4111.0,0.002]
[1760487942631,36.52713432,4111.1,4111.0,0.002]
[1760487943606,33.07294306,4110.6,4110.5,0.002]
[1760487943804,38.09185111,4110.6,4110.5,0.002]
[1760487944005,38.55465111,4110.6,4110.5,0.002]
[1760487945034,8.93626577,4110.6,4110.5,0.002]
[1760487945241,0.64053977,4108.8,4106.0,2.43540645]
[1760487945441,0.6336,4108.4,4106.2,2.4352988]
[1760487945737,2.084781,4109.1,4106.3,0.01844204]
[1760487945944,2.084781,4109.1,4106.0,2.43545624]
[1760487945945,0.12248051,4108.8,4108.1,0.0312]
[1760487946638,0.12248051,4108.8,4107.1,2.43480512]
[1760487946840,0.03042324,4108.7,4108.0,3.03425886]
[1760487947036,0.6336,4108.6,4108.0,0.6]
[1760487947239,3.0674017,4108.8,4108.0,3.03426702]
[1760487947441,0.58603936,4109.1,4108.0,0.6]
[1760487947442,5.478046,4108.1,4108.0,0.6]
[1760487947737,4.947142,4108.1,4108.0,0.6]
[1760487947939,2.5536,4108.1,4108.0,0.6]
[1760487948141,1.92,4108.1,4108.0,0.6]
[1760487949114,1.92,4108.1,4108.0,3.03427458]
[1760487949443,1.92,4108.1,4108.0,0.6]
[1760487951550,1.92,4108.1,4108.0,3.03427458]
[1760487952319,2.88979941,4109.4,4108.5,2.43396284]
[1760487952674,0.03042102,4109.0,4108.6,2.43387328]
[1760487952844,0.1216,4108.5,4108.3,0.0312]
[1760487953034,0.1216,4108.5,4108.0,1.14686524]
[1760487953035,0.1216,4108.9,4108.8,2.43380062]
[1760487953234,0.1216,4108.9,4108.8,2.46500062]
[1760487953436,0.1216,4108.9,4108.8,2.95488865]
[1760487953637,0.12126951,4109.6,4109.5,2.43338605]
[1760487953867,0.4563,4110.6,4109.4,2.43340554]
[1760487953868,0.1216,4109.7,4109.4,2.43340554]
[1760487954169,0.03694707,4110.5,4108.9,2.46490054]
[1760487954170,14.45591,4110.0,4108.9,2.46490054]
[1760487954348,0.1216,4109.3,4109.2,2.43351426]
[1760487954668,0.1216,4109.3,4109.2,2.43356371]
[1760487954965,0.1216,4109.3,4108.4,2.43399368]
[1760487954966,0.12842132,4109.3,4108.2,0.0312]
[1760487955171,0.1216,4108.9,4108.2,0.1528]
[1760487955368,0.1216,4108.9,4108.5,2.43393062]
[1760487955572,0.1216,4108.9,4108.5,0.28987306]
[1760487955774,0.1216,4108.9,4108.6,2.4339135]
[1760487955934,0.1216,4108.9,4108.7,2.43385235]